[Event "Niedersachsen-ch 2020"]
[Site "Verden-Aller"]
[Date "2020.01.03"]
[Round "4.5"]
[White "Pubantz, Jan"]
[Black "Hartogh, Christian"]
[Result "0-1"]
[ECO "A62"]
[WhiteElo "2233"]
[BlackElo "2075"]
[Annotator "NA"]
[PlyCount "152"]
[EventDate "2020.01.02"]
[EventType "swiss"]
[EventCountry "GER"]
[SourceTitle "playchess.com"]
[Source "ChessBase"]
[SourceQuality "1"]
[TimeControl "40/5400+30:1800+30"]

1. d4 {[%emt 0:00:49]} Nf6 {[%emt 0:00:00]} 2. c4 {[%emt 0:00:04]} c5 {[%emt 0:00:13]} 3. d5 {[%emt 0:00:12]} e6 {[%emt 0:00:13]} 4. Nc3 {[%emt 0:00:08]} exd5 {[%emt 0:00:07]} 5. cxd5 {[%emt 0:00:05]} d6 {[%emt 0:00:05]} 6. g3 {[%emt 0:00:08]} g6 {[%emt 0:00:08]} 7. Bg2 {[%emt 0:00:07]} Bg7 {[%emt 0:00:08]} 8. Nf3 {[%emt 0:00:04]} O-O {[%emt 0:00:54]} 9. O-O {[%emt 0:00:04]} a6 {[%emt 0:04:14]} 10. a4 {[%emt 0:00:09]} b6 {[%emt 0:01:10]} 11. Bf4 {[%emt 0:17:34]} h6 {[%emt 0:06:15]} 12. e4 {[%emt 0:16:43]} Nh5 {[%emt 0:22:12]} 13. Be3 {[%emt 0:07:45]} Nd7 {[%emt 0:02:04]} 14. Nd2 {[%emt 0:06:33]} Ne5 {[%emt 0:05:20]} 15. h3 {[%emt 0:01:27]} Rb8 {[%emt 0:11:47]} 16. Qe2 {[%emt 0:13:36]} Qc7 {[%emt 0:18:04]} 17. g4 {[%emt 0:06:05]} Nf6 {[%emt 0:00:04]} 18. f4 {[%emt 0:00:15]} Ned7 {[%emt 0:03:50]} 19. Qd3 {[%emt 0:12:41]} Nh7 {[%emt 0:03:40]} 20. Nf3 {[%emt 0:05:41]} c4 {[%emt 0:00:43]} 21. Qd2 {[%emt 0:00:26]} Nc5 {[%emt 0:00:44]} 22. Nd4 {[%emt 0:04:26]} Bxd4 {[%emt 0:01:56]} 23. Bxd4 {[%emt 0:00:04]} Nb3 {[%emt 0:00:09]} 24. Qf2 {[%emt 0:00:18]} Nxa1 {[%emt 0:04:03]} 25. Rxa1 {[%emt 0:00:03]} f6 {[%emt 0:02:26]} 26. Qh4 {[%emt 0:03:04]} Qg7 {[%emt 0:00:41]} 27. Bf1 {[%emt 0:01:25]} g5 {[%emt 0:02:45]} 28. Qg3 {[%emt 0:01:14]} Qc7 {[%emt 0:01:17]} 29. Be2 {[%emt 0:01:51]} Rb7 {[%emt 0:01:47]} 30. Be3 {[%emt 0:01:23]} b5 {[%emt 0:01:06]} 31. axb5 {[%emt 0:00:02]} axb5 {[%emt 0:00:05]} 32. Bf3 {[%emt 0:01:00]} b4 {[%emt 0:01:02]} 33. Ne2 {[%emt 0:00:06]} c3 {[%emt 0:00:12]} 34. bxc3 {[%emt 0:00:33]} bxc3 {[%emt 0:00:26]} 35. Nd4 {[%emt 0:00:51]} c2 {[%emt 0:01:44]} 36. Rc1 {[%emt 0:00:19]} Qc3 {[%emt 0:03:29]} 37. Qf2 {[%emt 0:00:22]} gxf4 {[%emt 0:00:52]} 38. Bxf4 {[%emt 0:00:23]} Ng5 {[%emt 0:00:07]} 39. Bxg5 {[%emt 0:00:55]} fxg5 {[%emt 0:00:02]} 40. Rxc2 {[%emt 0:00:17]} Qd3 {[%emt 0:01:50]} 41. Kg2 {[%emt 0:11:41]} Rb1 {[%emt 0:03:44]} 42. Rd2 {[%emt 0:02:00]} Qc3 {[%emt 0:04:11]} 43. Rc2 {[%emt 0:01:38]} Qa1 {[%emt 0:02:03]} 44. Ra2 {[%emt 0:03:18]} Qc3 {[%emt 0:04:05]} 45. Rc2 {[%emt 0:02:36]} Qd3 {[%emt 0:00:22]} 46. Rd2 {[%emt 0:00:29]} Qa3 {[%emt 0:00:14]} 47. Ra2 {[%emt 0:02:23]} Qc1 {[%emt 0:00:28]} 48. Kh2 {[%emt 0:03:28]} Bd7 {[%emt 0:03:14]} 49. Rc2 {[%emt 0:03:38]} Qf4+ {[%emt 0:00:17]} 50. Qg3 {[%emt 0:01:13]} Qf6 {[%emt 0:04:19]} 51. Nf5 {[%emt 0:02:06]} Bxf5 {[%emt 0:00:30]} 52. gxf5 {[%emt 0:00:09]} Rfb8 {[%emt 0:00:45]} 53. Bg2 {[%emt 0:00:53]} R1b3 {[%emt 0:02:00]} 54. Rc8+ {[%emt 0:01:41]} Rxc8 {[%emt 0:00:32]} 55. Qxb3 {[%emt 0:00:02]} Qe5+ {[%emt 0:00:24]} 56. Qg3 {[%emt 0:00:10]} Qxg3+ {[%emt 0:00:28]} 57. Kxg3 {[%emt 0:00:01]} Kg7 {[%emt 0:00:14]} 58. h4 {[%emt 0:00:35]} Kf6 {[%emt 0:00:59]} 59. Kg4 {[%emt 0:00:44]} gxh4 {[%emt 0:01:08]} 60. Kxh4 {[%emt 0:00:03]} Rg8 {[%emt 0:00:28]} 61. Kh3 {[%emt 0:00:24]} Ke5 {[%emt 0:00:19]} 62. Kh2 {[%emt 0:00:34]} Kf4 {[%emt 0:00:14]} 63. Kh3 {[%emt 0:01:15]} Kg5 {[%emt 0:01:29]} 64. Bf3 {[%emt 0:00:45]} Rb8 {[%emt 0:00:14]} 65. Kg3 {[%emt 0:00:36]} Rb3 {[%emt 0:00:18]} 66. Kf2 {[%emt 0:00:51]} Kf4 {[%emt 0:00:17]} 67. Bg2 {[%emt 0:00:25]} Rb2+ {[%emt 0:00:10]} 68. Kg1 {[%emt 0:00:25]} Kg3 {[%emt 0:00:44]} 69. Bf1 {[%emt 0:00:03]} Rd2 {[%emt 0:01:00]} 70. Bb5 {[%emt 0:01:09]} Rd1+ {[%emt 0:00:24]} 71. Bf1 {[%emt 0:00:03]} Re1 {[%emt 0:00:16]} 72. f6 {[%emt 0:00:17]} Rxe4 {[%emt 0:00:12]} 73. Bg2 {[%emt 0:01:05]} Rf4 {[%emt 0:00:07]} 74. Kh1 {[%emt 0:00:18]} Rxf6 {[%emt 0:00:09]} 75. Kg1 {[%emt 0:00:17]} Rf2 {[%emt 0:00:12]} 76. Bh1 {[%emt 0:00:17]} Ra2 {[%emt 0:00:15]} 0-1

[Event "Niedersachsen-ch 2020"]
[Site "Verden-Aller"]
[Date "2020.01.03"]
[Round "4.6"]
[White "Renner, Kai"]
[Black "Stotyn, Fabian"]
[Result "1-0"]
[ECO "C05"]
[WhiteElo "2180"]
[BlackElo "2198"]
[Annotator "NA"]
[PlyCount "65"]
[EventDate "2020.01.02"]
[EventType "swiss"]
[EventCountry "GER"]
[SourceTitle "playchess.com"]
[Source "ChessBase"]
[SourceQuality "1"]
[TimeControl "40/5400+30:1800+30"]

1. e4 {[%emt 0:00:00]} e6 {[%emt 0:00:00]} 2. d4 {[%emt 0:00:00]} d5 {[%emt 0:00:00]} 3. Nd2 {[%emt 0:00:00]} Nf6 {[%emt 0:00:00]} 4. e5 {[%emt 0:00:06]} Nfd7 {[%emt 0:00:00]} 5. f4 {[%emt 0:00:42]} c5 {[%emt 0:00:00]} 6. c3 {[%emt 0:00:14]} Nc6 {[%emt 0:00:00]} 7. Ndf3 {[%emt 0:00:18]} cxd4 {[%emt 0:01:05]} 8. cxd4 {[%emt 0:00:22]} Bb4+ {[%emt 0:01:22]} 9. Kf2 {[%emt 0:03:01]} f6 {[%emt 0:02:08]} 10. g3 {[%emt 0:00:58]} fxe5 {[%emt 0:02:13]} 11. fxe5 {[%emt 0:10:24]} O-O {[%emt 0:03:08]} 12. Kg2 {[%emt 0:01:38]} Nb6 {[%emt 0:07:14]} 13. Bd3 {[%emt 0:01:29]} Be7 {[%emt 0:03:01]} 14. h4 {[%emt 0:01:24]} Qe8 {[%emt 0:04:38]} 15. h5 {[%emt 0:05:18]} Bd7 {[%emt 0:06:40]} 16. Bb1 {[%emt 0:07:58]} Qf7 {[%emt 0:13:13]} 17. Bf4 {[%emt 0:12:41]} Nc4 {[%emt 0:02:22]} 18. Bc1 {[%emt 0:11:43]} Kh8 {[%emt 0:04:00]} 19. b3 {[%emt 0:00:45]} Nb6 {[%emt 0:00:18]} 20. Be3 {[%emt 0:05:21]} Rac8 {[%emt 0:00:58]} 21. g4 {[%emt 0:03:25]} Qg8 {[%emt 0:02:45]} 22. Nh3 {[%emt 0:01:50]} Rxf3 {[%emt 0:00:51]} 23. Qxf3 {[%emt 0:01:09]} Nb4 {[%emt 0:01:20]} 24. Qe2 {[%emt 0:04:57]} a6 {[%emt 0:04:05]} 25. a3 {[%emt 0:00:35]} Nc6 {[%emt 0:00:02]} 26. Nf4 {[%emt 0:02:53]} Be8 {[%emt 0:05:43]} 27. Ng6+ {[%emt 0:01:50]} Bxg6 {[%emt 0:00:04]} 28. hxg6 {[%emt 0:00:53]} h6 {[%emt 0:00:05]} 29. g5 {[%emt 0:03:49]} Bxg5 {[%emt 0:01:11]} 30. Bxg5 {[%emt 0:00:40]} Nxd4 {[%emt 0:00:13]} 31. Qe3 {[%emt 0:03:57]} Nf5 {[%emt 0:01:09]} 32. Bxf5 {[%emt 0:00:21]} exf5 {[%emt 0:00:08]} 33. Rxh6+ {[%emt 0:00:29]} 1-0

[Event "Niedersachsen-ch 2020"]
[Site "Verden-Aller"]
[Date "2020.01.03"]
[Round "4.7"]
[White "Hampel, Felix"]
[Black "Bargsten, Justus"]
[Result "1-0"]
[ECO "E06"]
[WhiteElo "2290"]
[BlackElo "2002"]
[Annotator "NA"]
[PlyCount "69"]
[EventDate "2020.01.02"]
[EventType "swiss"]
[EventCountry "GER"]
[SourceTitle "playchess.com"]
[Source "ChessBase"]
[SourceQuality "1"]
[TimeControl "40/5400+30:1800+30"]

1. c4 {[%emt 0:00:00]} Nf6 {[%emt 0:00:00]} 2. Nf3 {[%emt 0:00:00]} e6 {[%emt 0:00:07]} 3. d4 {[%emt 0:00:00]} d5 {[%emt 0:00:06]} 4. g3 {[%emt 0:00:00]} Be7 {[%emt 0:00:05]} 5. Bg2 {[%emt 0:00:00]} O-O {[%emt 0:00:05]} 6. O-O {[%emt 0:00:04]} dxc4 {[%emt 0:00:04]} 7. Qc2 {[%emt 0:00:06]} a6 {[%emt 0:00:06]} 8. a4 {[%emt 0:00:05]} Bd7 {[%emt 0:00:05]} 9. Qxc4 {[%emt 0:00:17]} Bc6 {[%emt 0:00:05]} 10. Bg5 {[%emt 0:00:14]} Bd5 {[%emt 0:03:20]} 11. Qc2 {[%emt 0:00:46]} Be4 {[%emt 0:01:22]} 12. Qd1 {[%emt 0:00:05]} c6 {[%emt 0:00:56]} 13. Nc3 {[%emt 0:00:58]} Bxf3 {[%emt 0:03:46]} 14. Bxf3 {[%emt 0:00:13]} a5 {[%emt 0:10:30]} 15. e4 {[%emt 0:11:30]} Ra6 {[%emt 0:05:05]} 16. Be3 {[%emt 0:04:38]} Nbd7 {[%emt 0:04:52]} 17. Qc2 {[%emt 0:04:17]} e5 {[%emt 0:10:45]} 18. dxe5 {[%emt 0:06:15]} Nxe5 {[%emt 0:00:08]} 19. Be2 {[%emt 0:00:13]} Ra8 {[%emt 0:00:56]} 20. Rad1 {[%emt 0:04:16]} Qc8 {[%emt 0:00:07]} 21. Kg2 {[%emt 0:02:36]} Bb4 {[%emt 0:02:21]} 22. Bd4 {[%emt 0:10:15]} Re8 {[%emt 0:05:57]} 23. f4 {[%emt 0:01:50]} Ned7 {[%emt 0:05:36]} 24. e5 {[%emt 0:01:56]} Bxc3 {[%emt 0:00:32]} 25. bxc3 {[%emt 0:08:39]} Nd5 {[%emt 0:00:16]} 26. Bg4 {[%emt 0:01:29]} Qc7 {[%emt 0:00:35]} 27. Qb3 {[%emt 0:00:52]} Rab8 {[%emt 0:02:19]} 28. c4 {[%emt 0:04:59]} Nb4 {[%emt 0:02:12]} 29. Bxd7 {[%emt 0:01:42]} Qxd7 {[%emt 0:00:07]} 30. Ba7 {[%emt 0:00:11]} Qf5 {[%emt 0:00:05]} 31. Bxb8 {[%emt 0:00:08]} Rxb8 {[%emt 0:00:06]} 32. Qb1 {[%emt 0:10:09]} Qe6 {[%emt 0:00:22]} 33. Qe4 {[%emt 0:00:27]} f5 {[%emt 0:00:12]} 34. Qe2 {[%emt 0:00:42]} Re8 {[%emt 0:01:08]} 35. Rfe1 {[%emt 0:00:50]} 1-0

[Event "Niedersachsen-ch 2020"]
[Site "Verden-Aller"]
[Date "2020.01.03"]
[Round "4.8"]
[White "Gentemann, Moritz"]
[Black "Mueer, Sebastian"]
[Result "0-1"]
[ECO "E92"]
[WhiteElo "2185"]
[BlackElo "2223"]
[Annotator "NA"]
[PlyCount "86"]
[EventDate "2020.01.02"]
[EventType "swiss"]
[EventCountry "GER"]
[SourceTitle "playchess.com"]
[Source "ChessBase"]
[SourceQuality "1"]
[TimeControl "40/5400+30:1800+30"]

1. c4 {[%emt 0:00:00]} Nf6 {[%emt 0:02:50]} 2. Nc3 {[%emt 0:00:00]} g6 {[%emt 0:00:09]} 3. e4 {[%emt 0:00:09]} d6 {[%emt 0:00:13]} 4. d4 {[%emt 0:00:13]} Bg7 {[%emt 0:00:25]} 5. Be2 {[%emt 0:00:43]} O-O {[%emt 0:00:11]} 6. Nf3 {[%emt 0:00:08]} e5 {[%emt 0:00:06]} 7. d5 {[%emt 0:00:21]} a5 {[%emt 0:00:09]} 8. Bg5 {[%emt 0:00:11]} h6 {[%emt 0:00:30]} 9. Bh4 {[%emt 0:00:17]} Na6 {[%emt 0:01:46]} 10. Nd2 {[%emt 0:00:26]} Qe8 {[%emt 0:01:01]} 11. O-O {[%emt 0:00:21]} Bd7 {[%emt 0:00:32]} 12. b3 {[%emt 0:00:56]} Nh7 {[%emt 0:00:14]} 13. a3 {[%emt 0:00:31]} h5 {[%emt 0:00:22]} 14. f3 {[%emt 0:00:21]} Bh6 {[%emt 0:03:55]} 15. Rb1 {[%emt 0:00:57]} Be3+ {[%emt 0:01:26]} 16. Kh1 {[%emt 0:00:20]} Bc5 {[%emt 0:03:41]} 17. Qc1 {[%emt 0:04:44]} f5 {[%emt 0:02:02]} 18. exf5 {[%emt 0:03:48]} gxf5 {[%emt 0:00:13]} 19. b4 {[%emt 0:02:01]} axb4 {[%emt 0:07:00]} 20. axb4 {[%emt 0:00:12]} Bxb4 {[%emt 0:15:01]} 21. Rb3 {[%emt 0:00:50]} Ba5 {[%emt 0:09:46]} 22. f4 {[%emt 0:05:15]} exf4 {[%emt 0:12:19]} 23. Bd1 {[%emt 0:19:58]} Nc5 {[%emt 0:07:24]} 24. Ra3 {[%emt 0:00:38]} Qg6 {[%emt 0:06:01]} 25. Ncb1 {[%emt 0:09:44]} Bb4 {[%emt 0:03:00]} 26. Rh3 {[%emt 0:01:57]} Nf6 {[%emt 0:17:22]} 27. Rxf4 {[%emt 0:22:17]} Ng4 {[%emt 0:02:29]} 28. Nf1 {[%emt 0:07:26]} Ne4 {[%emt 0:01:36]} 29. Bc2 {[%emt 0:02:33]} Bc5 {[%emt 0:00:36]} 30. Rhf3 {[%emt 0:00:25]} Ne5 {[%emt 0:02:03]} 31. Rh3 {[%emt 0:14:28]} Rae8 {[%emt 0:00:32]} 32. Ng3 {[%emt 0:01:06]} Nf2+ {[%emt 0:00:25]} 33. Rxf2 {[%emt 0:00:34]} Bxf2 {[%emt 0:00:02]} 34. Nxh5 {[%emt 0:00:28]} Ng4 {[%emt 0:00:47]} 35. Nf4 {[%emt 0:01:07]} Qg7 {[%emt 0:00:47]} 36. Nd3 {[%emt 0:00:20]} Bxh4 {[%emt 0:00:20]} 37. Rxh4 {[%emt 0:00:01]} Rf6 {[%emt 0:00:35]} 38. Rh5 {[%emt 0:02:17]} Rh6 {[%emt 0:00:34]} 39. Rxh6 {[%emt 0:00:53]} Qxh6 {[%emt 0:00:01]} 40. Qg1 {[%emt 0:00:24]} Re4 {[%emt 0:00:58]} 41. h3 {[%emt 0:02:08]} Ne3 {[%emt 0:00:44]} 42. Bb3 {[%emt 0:01:40]} Rg4 {[%emt 0:04:17]} 43. Ne1 {[%emt 0:02:07]} Rg3 {[%emt 0:00:18]} 0-1

[Event "Niedersachsen-ch 2020"]
[Site "Verden-Aller"]
[Date "2020.01.03"]
[Round "4.9"]
[White "Meyer, Heinz-Dieter"]
[Black "Issing, Peter"]
[Result "1/2-1/2"]
[ECO "A17"]
[WhiteElo "2102"]
[BlackElo "2151"]
[Annotator "NA"]
[PlyCount "48"]
[EventDate "2020.01.02"]
[EventType "swiss"]
[EventCountry "GER"]
[SourceTitle "playchess.com"]
[Source "ChessBase"]
[SourceQuality "1"]
[TimeControl "40/5400+30:1800+30"]

1. c4 {[%emt 0:00:00]} e6 {[%emt 0:00:00]} 2. Nf3 {[%emt 0:00:00]} Nf6 {[%emt 0:00:14]} 3. Nc3 {[%emt 0:00:57]} Bb4 {[%emt 0:02:49]} 4. Qc2 {[%emt 0:02:28]} O-O {[%emt 0:04:15]} 5. a3 {[%emt 0:00:07]} Bxc3 {[%emt 0:02:38]} 6. Qxc3 {[%emt 0:00:08]} d5 {[%emt 0:03:11]} 7. e3 {[%emt 0:02:21]} b6 {[%emt 0:02:41]} 8. b4 {[%emt 0:01:46]} Ne4 {[%emt 0:03:30]} 9. Qc2 {[%emt 0:01:41]} a5 {[%emt 0:05:17]} 10. d3 {[%emt 0:04:07]} Nf6 {[%emt 0:00:56]} 11. Bb2 {[%emt 0:00:13]} axb4 {[%emt 0:11:23]} 12. axb4 {[%emt 0:00:04]} Rxa1+ {[%emt 0:00:08]} 13. Bxa1 {[%emt 0:00:05]} Bb7 {[%emt 0:08:58]} 14. Be2 {[%emt 0:01:58]} dxc4 {[%emt 0:00:46]} 15. dxc4 {[%emt 0:04:51]} Qe7 {[%emt 0:09:08]} 16. Qc3 {[%emt 0:09:58]} Na6 {[%emt 0:02:16]} 17. b5 {[%emt 0:04:09]} Nc5 {[%emt 0:00:06]} 18. O-O {[%emt 0:00:09]} Ra8 {[%emt 0:01:37]} 19. Ne5 {[%emt 0:05:24]} Nfe4 {[%emt 0:04:19]} 20. Qc2 {[%emt 0:09:01]} f6 {[%emt 0:08:51]} 21. Nd3 {[%emt 0:03:22]} Nxd3 {[%emt 0:03:45]} 22. Bxd3 {[%emt 0:00:47]} f5 {[%emt 0:00:10]} 23. Be5 {[%emt 0:05:00]} Rd8 {[%emt 0:03:31]} 24. Rd1 {[%emt 0:02:01]} Rd7 1/2-1/2

[Event "Niedersachsen-ch 2020"]
[Site "Verden-Aller"]
[Date "2020.01.03"]
[Round "4.10"]
[White "Marzik, Hans"]
[Black "Webner, Dennis"]
[Result "1/2-1/2"]
[ECO "A41"]
[WhiteElo "2047"]
[BlackElo "2113"]
[Annotator "NA"]
[PlyCount "65"]
[EventDate "2020.01.02"]
[EventType "swiss"]
[EventCountry "GER"]
[SourceTitle "playchess.com"]
[Source "ChessBase"]
[SourceQuality "1"]
[TimeControl "40/5400+30:1800+30"]

1. d4 {[%emt 0:00:00]} d6 {[%emt 0:00:00]} 2. c4 {[%emt 0:00:00]} e5 {[%emt 0:00:00]} 3. Nf3 {[%emt 0:00:05]} Nc6 {[%emt 0:01:51]} 4. Nc3 {[%emt 0:00:54]} Nf6 {[%emt 0:03:58]} 5. g3 {[%emt 0:06:48]} Bg4 {[%emt 0:02:53]} 6. d5 {[%emt 0:00:34]} Ne7 {[%emt 0:03:00]} 7. Bg2 {[%emt 0:00:35]} Qd7 {[%emt 0:03:19]} 8. O-O {[%emt 0:00:08]} Ng6 {[%emt 0:06:16]} 9. Qc2 {[%emt 0:12:40]} Be7 {[%emt 0:01:19]} 10. Ng5 {[%emt 0:03:42]} Ng8 {[%emt 0:22:35]} 11. f3 {[%emt 0:14:53]} Bxg5 {[%emt 0:01:16]} 12. Bxg5 {[%emt 0:00:06]} Bh3 {[%emt 0:03:06]} 13. Bxh3 {[%emt 0:01:54]} Qxh3 {[%emt 0:00:06]} 14. Qa4+ {[%emt 0:00:00]} Qd7 {[%emt 0:00:49]} 15. Nb5 {[%emt 0:01:10]} Kf8 {[%emt 0:00:41]} 16. Qc2 {[%emt 0:00:21]} N8e7 {[%emt 0:02:09]} 17. e4 {[%emt 0:01:44]} f6 {[%emt 0:01:29]} 18. Be3 {[%emt 0:00:09]} a6 {[%emt 0:00:15]} 19. Nc3 {[%emt 0:00:05]} Kf7 {[%emt 0:00:33]} 20. c5 {[%emt 0:00:13]} h5 {[%emt 0:06:15]} 21. Rac1 {[%emt 0:07:49]} Rac8 {[%emt 0:00:57]} 22. Qe2 {[%emt 0:08:13]} Nf8 {[%emt 0:04:59]} 23. Rc2 {[%emt 0:05:44]} g5 {[%emt 0:00:38]} 24. f4 {[%emt 0:04:19]} gxf4 {[%emt 0:11:30]} 25. gxf4 {[%emt 0:01:02]} Qg4+ {[%emt 0:00:59]} 26. Qxg4 {[%emt 0:01:50]} hxg4 {[%emt 0:00:03]} 27. cxd6 {[%emt 0:00:03]} cxd6 {[%emt 0:00:19]} 28. fxe5 {[%emt 0:00:04]} dxe5 {[%emt 0:00:21]} 29. Rcf2 {[%emt 0:00:03]} Nd7 {[%emt 0:01:28]} 30. Ne2 {[%emt 0:14:59]} Rc2 {[%emt 0:06:01]} 31. Ng3 {[%emt 0:00:23]} Rxf2 {[%emt 0:00:12]} 32. Rxf2 {[%emt 0:00:01]} Rc8 {[%emt 0:01:30]} 33. Kg2 {[%emt 0:00:21]} 1/2-1/2

[Event "Niedersachsen-ch 2020"]
[Site "Verden-Aller"]
[Date "2020.01.03"]
[Round "4.11"]
[White "Eickhoff, Hermann"]
[Black "Seidenstuecker, Hans-Lennart"]
[Result "1-0"]
[ECO "A37"]
[WhiteElo "1785"]
[BlackElo "1714"]
[Annotator "NA"]
[PlyCount "59"]
[EventDate "2020.01.02"]
[EventType "swiss"]
[EventCountry "GER"]
[SourceTitle "playchess.com"]
[Source "ChessBase"]
[SourceQuality "1"]
[TimeControl "40/5400+30:1800+30"]

1. c4 {[%emt 0:00:00]} c5 {[%emt 0:00:00]} 2. g3 {[%emt 0:00:00]} g6 {[%emt 0:00:00]} 3. Bg2 {[%emt 0:00:01]} Bg7 {[%emt 0:00:00]} 4. Nc3 {[%emt 0:00:23]} Nc6 {[%emt 0:00:00]} 5. Nf3 {[%emt 0:00:43]} e6 {[%emt 0:00:16]} 6. O-O {[%emt 0:01:04]} Nge7 {[%emt 0:00:06]} 7. d3 {[%emt 0:00:53]} O-O {[%emt 0:00:17]} 8. e4 {[%emt 0:05:46]} d6 {[%emt 0:03:24]} 9. Be3 {[%emt 0:01:03]} Nd4 {[%emt 0:00:11]} 10. Bxd4 {[%emt 0:02:21]} cxd4 {[%emt 0:00:11]} 11. Ne2 {[%emt 0:01:37]} e5 {[%emt 0:00:06]} 12. b4 {[%emt 0:01:53]} f5 {[%emt 0:03:06]} 13. exf5 {[%emt 0:00:11]} gxf5 {[%emt 0:02:11]} 14. Qb3 {[%emt 0:00:54]} Kh8 {[%emt 0:00:21]} 15. c5 {[%emt 0:05:06]} e4 {[%emt 0:07:32]} 16. Ng5 d5 {[%emt 0:01:51]} 17. Nf4 {[%emt 0:09:15]} Rf6 {[%emt 0:10:04]} 18. Rad1 {[%emt 0:03:41]} a5 {[%emt 0:06:04]} 19. Nh5 {[%emt 0:01:28]} Rg6 {[%emt 0:01:45]} 20. Nf7+ {[%emt 0:00:15]} Kg8 {[%emt 0:00:19]} 21. Nxd8 {[%emt 0:00:07]} a4 {[%emt 0:00:16]} 22. Qb1 {[%emt 0:02:15]} Bh6 {[%emt 0:01:17]} 23. dxe4 {[%emt 0:00:46]} fxe4 {[%emt 0:00:17]} 24. b5 {[%emt 0:07:37]} Bg4 {[%emt 0:00:32]} 25. Nxb7 {[%emt 0:00:49]} e3 {[%emt 0:01:38]} 26. Rxd4 {[%emt 0:03:16]} Bxh5 {[%emt 0:00:51]} 27. Bxd5+ {[%emt 0:01:38]} Nxd5 {[%emt 0:00:30]} 28. Rxd5 {[%emt 0:00:46]} e2 {[%emt 0:05:03]} 29. Rxh5 {[%emt 0:00:44]} exf1=Q+ {[%emt 0:00:23]} 30. Kxf1 {[%emt 0:00:26]} 1-0

[Event "Niedersachsen-ch 2020"]
[Site "Verden-Aller"]
[Date "2020.01.03"]
[Round "4.12"]
[White "Korb, Ruben"]
[Black "Santos, Jose P"]
[Result "0-1"]
[ECO "B23"]
[WhiteElo "1709"]
[BlackElo "2282"]
[Annotator "NA"]
[PlyCount "42"]
[EventDate "2020.01.02"]
[EventType "swiss"]
[EventCountry "GER"]
[SourceTitle "playchess.com"]
[Source "ChessBase"]
[SourceQuality "1"]
[TimeControl "40/5400+30:1800+30"]

1. e4 {[%emt 0:00:00]} c5 {[%emt 0:00:00]} 2. Nc3 {[%emt 0:00:00]} e6 {[%emt 0:01:38]} 3. g3 {[%emt 0:01:22]} d5 {[%emt 0:01:29]} 4. exd5 {[%emt 0:05:23]} exd5 {[%emt 0:00:15]} 5. d4 {[%emt 0:01:34]} Be6 {[%emt 0:05:49]} 6. Bg2 {[%emt 0:01:47]} cxd4 {[%emt 0:04:09]} 7. Qxd4 {[%emt 0:00:31]} Nc6 {[%emt 0:00:55]} 8. Qd3 {[%emt 0:04:06]} Bb4 {[%emt 0:11:37]} 9. Bd2 {[%emt 0:02:44]} Nge7 {[%emt 0:02:44]} 10. O-O-O {[%emt 0:07:37]} Qa5 {[%emt 0:07:53]} 11. Nge2 {[%emt 0:01:01]} O-O-O {[%emt 0:14:27]} 12. Qb5 {[%emt 0:05:25]} d4 {[%emt 0:05:46]} 13. Qxa5 {[%emt 0:02:04]} Bxa5 {[%emt 0:00:01]} 14. Nb5 Bc7 {[%emt 0:10:01]} 15. Be4 {[%emt 0:22:47]} Be5 {[%emt 0:00:54]} 16. Nf4 {[%emt 0:04:13]} Nd5 {[%emt 0:07:17]} 17. Nd3 {[%emt 0:01:44]} Bf6 {[%emt 0:02:31]} 18. Rhe1 {[%emt 0:04:15]} a6 {[%emt 0:03:14]} 19. Na3 {[%emt 0:00:02]} Rhe8 {[%emt 0:02:04]} 20. Nc5 {[%emt 0:00:43]} Nde7 {[%emt 0:03:15]} 21. Bd3 {[%emt 0:02:07]} Ne5 {[%emt 0:04:31]} 0-1

[Event "Niedersachsen-ch 2020"]
[Site "Verden-Aller"]
[Date "2020.01.04"]
[Round "5.2"]
[White "Schulze, Torben Dr."]
[Black "Riemay, David"]
[Result "0-1"]
[ECO "A45"]
[WhiteElo "2266"]
[BlackElo "2139"]
[Annotator "NA"]
[PlyCount "66"]
[EventDate "2020.01.02"]
[EventType "swiss"]
[EventCountry "GER"]
[SourceTitle "playchess.com"]
[Source "ChessBase"]
[SourceQuality "1"]
[TimeControl "40/5400+30:1800+30"]

1. e4 {[%emt 0:02:04]} d6 {[%emt 0:01:27]} 2. g3 {[%emt 0:04:13]} e5 {[%emt 0:02:13]} 3. Bg2 {[%emt 0:00:23]} Nf6 {[%emt 0:00:13]} 4. Ne2 {[%emt 0:00:21]} Be7 {[%emt 0:00:17]} 5. O-O {[%emt 0:00:51]} c6 {[%emt 0:00:14]} 6. d4 {[%emt 0:05:41]} Nbd7 {[%emt 0:00:15]} 7. h3 {[%emt 0:05:11] A45: Trompowsky Attack} (7. c4 O-O 8. Nbc3 a6 9. a4 a5 10. h3 Re8 11. Be3 exd4 12. Nxd4 Bf8 13. Qc2 Nc5 14. Rfe1 Qb6 15. f4 g6 16. Bf2 Qc7 {½-½ (37) Baburin,A (2527)-Galego,L (2515) Mallorca 2004}) 7... Qc7 {[%emt 0:00:48]} 8. Be3 $146 {[%emt 0:00:42]} ({Predecessor:} 8. c4 h6 9. Nbc3 g5 10. Be3 Nf8 11. f4 gxf4 12. gxf4 Ng6 13. Qe1 Nh5 14. fxe5 dxe5 15. Qf2 Bg5 16. Rad1 Bxe3 17. Qxe3 Ngf4 18. Nxf4 Nxf4 19. Ne2 Nxg2 20. Kh1 exd4 21. Rxd4 {½-½ (21) Egger,B-Dettler,T Wuerttemberg 1993}) 8... h5 {[%emt 0:08:40]} 9. Qd2 {[%emt 0:02:28]} Nb6 {[%emt 0:02:29]} 10. Qa5 {[%emt 0:11:58]} (10. b3 $14) 10... h4 {[%emt 0:08:51]} 11. g4 {[%emt 0:07:21] [#]} Nxg4 $1 {[%emt 0:07:05]} 12. hxg4 {[%emt 0:01:03]} Bxg4 {[%emt 0:00:11]} 13. f3 {[%emt 0:07:21]} h3 {[%emt 0:00:49]} 14. fxg4 {[%emt 0:02:15]} hxg2 {[%emt 0:01:14]} 15. Kxg2 {[%emt 0:20:13]} Qd7 {[%emt 0:02:24]} 16. Ng3 {[%emt 0:01:11]} Qxg4 {[%emt 0:00:48]} 17. Qe1 {[%emt 0:02:07]} Nc4 {[%emt 0:16:04]} 18. Bf2 {[%emt 0:06:28]} Qh3+ {[%emt 0:15:43]} 19. Kf3 {[%emt 0:00:03]} Rh4 {[%emt 0:07:36]} 20. c3 {[%emt 0:08:49]} d5 {[%emt 0:02:16]} 21. Nd2 {[%emt 0:05:44]} dxe4+ {[%emt 0:00:29]} 22. Ndxe4 {[%emt 0:00:23]} f5 {[%emt 0:00:30]} 23. Ke2 $19 {[%emt 0:02:27]} fxe4 {[%emt 0:01:38]} 24. Kd1 {[%emt 0:00:36]} exd4 {[%emt 0:01:01]} 25. Bxd4 {[%emt 0:01:46]} O-O-O {[%emt 0:00:31]} 26. Kc2 {[%emt 0:00:48]} c5 {[%emt 0:00:51]} 27. Rh1 {[%emt 0:00:29]} Qg2+ {[%emt 0:01:07]} 28. Qf2 {[%emt 0:00:01]} Qxf2+ {[%emt 0:00:15]} 29. Bxf2 {[%emt 0:00:01]} Rd2+ 30. Kb3 b5 {[%emt 0:00:24]} 31. Rab1 {[%emt 0:01:06]} Na5+ {[%emt 0:00:24]} 32. Ka3 {[%emt 0:00:19]} c4+ {[%emt 0:00:09]} 33. b4 {[%emt 0:00:46]} cxb3+ {[%emt 0:00:04]} 0-1